Cogmind - Beta 17 @@@ ROGUE MODE // 2026.07.25 @ 22:16:43 Player: gorb Result: Destroyed by S-10 Pest with Light Assault Rifle Performance ------------- Evolutions (0) 0 Regions Visited (2) 400 Robots Destroyed (15) 75 Value Destroyed (346) 346 Prototype IDs (0) 0 Alien Tech Used (0) 0 Bonus (0) 0 TOTAL SCORE: 821 Bonus ------- None Cogmind --------- Core Integrity 0/250 Matter 289/300 Energy 160/160 System Corruption 1% Temperature Cool (60) Movement Walking (120) Location -10/Mines Parts ------- > --- POWER (1) -------- Light Nuclear Core > --- PROPULSION (2) --- Aluminum Leg Aluminum Leg > --- UTILITY (2) ------ Small Storage Unit Light Armor Plating > --- WEAPON (2) ------- Small Laser Light Assault Rifle > --- INVENTORY (8) ---- Light Nuclear Core Improved Heat Sink Peak State ------------ > --- POWER ------------ Light Nuclear Core > --- PROPULSION ------- Aluminum Leg Aluminum Leg > --- UTILITY ---------- Small Storage Unit Light Armor Plating > --- WEAPON ----------- Small Laser Light Assault Rifle > --- INVENTORY -------- Light Nuclear Core Improved Heat Sink Small Laser [Rating: 9] Favorites ----------- Power Light Nuclear Core Engine Light Ion Engine Power Core Light Nuclear Core Propulsion Aluminum Leg Leg Aluminum Leg Wheel Compact Wheel Hover Unit Hover Unit Utility Small Storage Unit Device Seismic Detector Storage Small Storage Unit Protection Light Armor Plating Weapon Light Assault Rifle Energy Gun Medium Laser Ballistic Gun Light Assault Rifle Build | -11 -10 -10 ------- Run | Yrd Mat Min Slots Evolved . | . . . Power . | . . . Propulsion . | . . . Utility . | . . . Weapon . | . . . Parts Attached 21 | 3 18 . Power 4 | 1 3 . Engine 3 | 1 2 . Core 1 | . 1 . Reactor . | . . . Propulsion 9 | . 9 . Treads . | . . . Leg 5 | . 5 . Wheel 2 | . 2 . Hover 2 | . 2 . Flight . | . . . Utility 3 | 1 2 . Device 1 | . 1 . Storage 1 | 1 . . Processor . | . . . Hackware . | . . . Protection 1 | . 1 . Artifact . | . . . Weapon 5 | 1 4 . Energy Gun 3 | 1 2 . Energy Cannon . | . . . Ballistic Gun 2 | . 2 . Ballistic Cannon . | . . . Launcher . | . . . Special Weapon . | . . . Impact Weapon . | . . . Slashing Weapon . | . . . Piercing Weapon . | . . . Special Melee Weapon . | . . . Unidentified Prototypes . | . . . Parts Lost 6 | . 6 . Power 2 | . 2 . Propulsion 2 | . 2 . Utility 1 | . 1 . Weapon 1 | . 1 . Highest Loss Streak 3 | . 3 . To Critical Strikes . | . . . Average Backups 4 | 6 4 2 Power . | . . 1 Propulsion 1 | 3 1 . Utility 1 | . 1 1 Weapon 1 | 1 1 . Tool/Special . | . . . Unused Backups 5 | . 3 2 Power 1 | . . 1 Propulsion 2 | . 2 . Utility 2 | . 1 1 Weapon . | . . . Tool/Special . | . . . Average Slot Usage (%) 86 | . 86 100 Engine 6 | . 6 . Core 6 | . 6 14 Leg 15 | . 15 28 Wheel 3 | . 3 . Hover 6 | . 6 . Device 5 | . 5 . Storage 14 | . 14 14 Protection 7 | . 7 14 Energy Gun 11 | . 11 14 Ballistic Gun 8 | . 8 14 Peak Build Rating 9 | 3 9 9 Average Rating 6 | 2 7 9 On Entrance 4 | . 3 9 Avg Prop Armor Cover (%) . | . . . Naked Turns . | . . . Heaviest Build 15 | 12 15 . Greatest Support 32 | 3 32 . Greatest Overweight (x) 3 | 3 2 . Average Overweight (x) . | 2 . . Largest Inventory Capacity 8 | 8 8 8 Average Capacity 7 | 7 8 8 Most Carried 8 | 7 8 2 Average Carried 4 | 6 4 2 Final Capacity 8 | 8 8 8 Final Carried 7 | 7 2 2 Class Distribution -------------------- 75% | Mutant 24% | Scavenger-Mutant Dominant Class ---------------- Mutant | -10/Materials Mutant | -10/Mines Resources | -11 -10 -10 ----------- Run | Yrd Mat Min Matter Collected 476 | 230 246 . Remotely . | . . . Salvage Created 463 | . 463 . Parts 29 | . 29 . Haulers Intercepted . | . . . Recyclers Shooed 1 | . 1 . Parts Field Recycled . | . . . Retrieved Matter . | . . . Parts Self-Destructed . | . . . Prevented . | . . . Parts Restored . | . . . Kills | -11 -10 -10 ------- Run | Yrd Mat Min Combat Hostiles Destroyed 13 | . 13 . Guns 13 | . 13 . Classes Destroyed 4 | . 4 . Recycler 1 | . 1 . Watcher 1 | . 1 . Swarmer 6 | . 6 . Grunt 7 | . 7 . Best Kill Streak 4 | . 4 . Combat Bots Only 4 | . 4 . Max Kills in Single Turn 1 | . 1 . Gunslinging . | . . . Exploded . | . . . Melee . | . . . Uniques/NPCs Destroyed . | . . . Combat | -11 -10 -10 -------- Run | Yrd Mat Min Hostile Shots Fired 117 | . 102 15 Missed 27 | . 22 5 Hits 90 | . 80 10 Projectile 90 | . 80 10 Critical Strikes 1 | . 1 . Damage Taken 939 | . 848 91 Core 255 | . 229 26 Absorbed by Shields . | . . . Core Remaining (%) 100 | 100 . . Volleys Fired 93 | . 90 3 Largest 2 | . 2 2 Hottest 70 | . 70 60 Shots Fired 103 | . 97 6 Gun 103 | . 97 6 Cannon . | . . . Launcher . | . . . Special . | . . . Kinetic 72 | . 69 3 Thermal 31 | . 28 3 Explosive . | . . . Electromagnetic . | . . . Robot Hit Streak 9 | . 9 3 Robot Miss Streak 3 | . 3 3 Penetration Max . | . . . Secondary Targets . | . . . Shots Hit Robots 70 | . 67 3 Core Hits 31 | . 30 1 Critical Kills 1 | . 1 . Critical Parts Destroyed . | . . . Critical Strikes 3 | . 3 . Burn 2 | . 2 . Destroy 1 | . 1 . Melee Attacks . | . . . Impact . | . . . Slashing . | . . . Piercing . | . . . Sneak Attacks . | . . . Combat Hostiles . | . . . Follow-up Attacks . | . . . Damage Inflicted 694 | . 667 27 Guns 667 | . 640 27 Cannons . | . . . Explosions . | . . . Melee . | . . . Ramming 27 | . 27 . Kinetic 433 | . 418 15 Thermal 234 | . 222 12 Explosive . | . . . Electromagnetic . | . . . Impact . | . . . Slashing . | . . . Piercing . | . . . Highest Corruption 1 | . 1 1 Average Corruption 1 | . 1 1 Corruption Purged . | . . . Corruption Blocked . | . . . Effects 2 | . 2 . Message Errors 1 | . 1 . Matter Fused 1 | . 1 . Overload Shots . | . . . Overflow Damage . | . . . Projectiles . | . . . Explosions . | . . . Melee . | . . . Knockbacks . | . . . Impact . | . . . Kinetic . | . . . Secondary . | . . . Self-Inflicted Damage 3 | . 3 . Shots . | . . . Rammed 1 | . 1 . Targets Rammed 3 | . 3 . Kicked 2 | . 2 . Crushed . | . . . Highest Temperature 276 | . 276 60 Average Temperature 68 | . 71 33 Received Heat Transfer 348 | . 348 . Effects 1 | . 1 . Energy Bleed 1 | . 1 . Siege Activations . | . . . Martial Activations . | . . . Shielding Activations . | . . . Robots Disrupted . | . . . Combat Hostiles . | . . . Robots Corrupted . | . . . Combat Hostiles . | . . . Parts Fried . | . . . Impact Corruptions . | . . . Robots Melted . | . . . Combat Hostiles . | . . . Parts Melted 2 | . 2 . Heat Transferred 815 | . 790 25 Parts Sabotaged . | . . . Parts Stolen . | . . . Parts Stripped . | . . . Power Chain Reactions . | . . . Alert | -11 -10 -10 ------- Run | Yrd Mat Min Maximum Alert Level . | . . . Low Security (%) 100 | 100 100 100 Level 1 . | . . . Level 2 . | . . . Level 3 . | . . . Level 4 . | . . . Level 5 . | . . . High Security . | . . . Max Security . | . . . Peak Influence 159 | . 159 7 Initial 7 | . . 7 Average 46 | . 51 7 Influence Increases 433 | . 433 . Destroy 0b10 Robot/C 260 | . 260 . Destroy 0b10 Robot/NC 10 | . 10 . Destroy Leader 42 | . 42 . Successful Hack 16 | . 16 . Lose Combat Pursuer 105 | . 105 . Influence Decreases 426 | . 414 12 Entered New Map 12 | . . 12 Time Decay 373 | . 373 . Lost Part 41 | . 41 . Squads Dispatched . | . . . Investigation . | . . . Extermination . | . . . Reinforcement . | . . . Assault . | . . . Garrison . | . . . Intercept . | . . . Searches Triggered . | . . . Construction Impeded . | . . . Haulers Reinforced . | . . . Active Scanning Responses . | . . . Cargo Convoy Interrupts . | . . . Stealth | -11 -10 -10 --------- Run | Yrd Mat Min Distress Signals 2 | . 2 . Communications Jammed . | . . . Distress Signals . | . . . Times Spotted 27 | . 24 3 Peak Tracking Total 6 | . 6 3 Tactical Retreats 3 | . 3 . Traps | -11 -10 -10 ------- Run | Yrd Mat Min Traps Triggered 1 | . 1 . Indirectly . | . . . Trap Hack Attempts . | . . . Triggered . | . . . Disarmed . | . . . Reprogrammed . | . . . Reused . | . . . Traps Extracted . | . . . Installed . | . . . Triggered . | . . . Machines | -11 -10 -10 ---------- Run | Yrd Mat Min Machines Disabled . | . . . Max in Single Turn . | . . . Machines Repaired . | . . . Machines Dismantled . | . . . Machines Sabotaged . | . . . Overloaded Fab Kills . | . . . Hacking | -11 -10 -10 --------- Run | Yrd Mat Min Machines Accessed 4 | . 4 . Terminals 4 | . 4 . Fabricators . | . . . Repair Stations . | . . . Recycling Units . | . . . Scanalyzers . | . . . Garrison Access . | . . . Total Hacks 10 | . 10 . Successful 3 | . 3 . Failed 7 | . 7 . Catastrophic 1 | . 1 . Database Lockouts . | . . . Manual 6 | . 6 . Terminals 10 | . 10 . Fabricators . | . . . Repair Stations . | . . . Recycling Units . | . . . Scanalyzers . | . . . Garrison Access . | . . . Terminal Hacks 3 | . 3 . Level Access Points 1 | . 1 . Branch Access Points 1 | . 1 . Alert Level 1 | . 1 . Fabricator Hacks . | . . . Repair Station Hacks . | . . . Recycling Unit Hacks . | . . . Scanalyzer . | . . . Garrison Access Hacks . | . . . Unauthorized Hacks . | . . . Terminals . | . . . Fabricators . | . . . Repair Stations . | . . . Recycling Units . | . . . Scanalyzers . | . . . Garrison Access . | . . . Data Cores Recovered . | . . . Used . | . . . Hacking Detections 4 | . 4 . Full Trace Events 2 | . 2 . Feedback Events 1 | . 1 . Corruption 1 | . 1 . Feedback Blocked . | . . . Robot Schematics Acquired . | . . . Robots Built . | . . . Authchips . | . . . Time . | . . . Total Robot Build Rating . | . . . Part Schematics Acquired . | . . . Parts Built . | . . . Authchips . | . . . Time . | . . . Total Part Build Rating . | . . . Part Studies Acquired . | . . . Parts Repaired . | . . . Time . | . . . Parts Recycled . | . . . Recycled Matter . | . . . Retrieved Matter . | . . . Retrieved Components . | . . . Parts Scanalyzed . | . . . Part Schematics Acquired . | . . . Parts Damaged . | . . . Bothacking | -11 -10 -10 ------------ Run | Yrd Mat Min Used RIF Installer . | . . . Robots Hacked . | . . . Non-combat . | . . . Combat . | . . . Robot Hacks Applied . | . . . Relay Couplers Released . | . . . Fabnet Peak Effective % . | . . . Robots Rewired . | . . . Allies Hacked . | . . . Hacks Repelled . | . . . Allies | -11 -10 -10 -------- Run | Yrd Mat Min Total Allies . | . . . Largest Group . | . . . Highest-Rated Group . | . . . Highest-Rated Ally . | . . . Total Orders . | . . . Ally Attacks . | . . . Total Damage . | . . . Kills . | . . . Allies Corrupted . | . . . Allies Melted . | . . . Intel | -11 -10 -10 ------- Run | Yrd Mat Min Active Infowar (turns) 405 | . 405 . Seismic 405 | . 405 . Robot Analysis Total . | . . . Derelict Logs Recovered . | . . . Drone Launches . | . . . Drone Recoveries . | . . . Exploration | -11 -10 -10 ------------- Run | Yrd Mat Min Turns Passed 1492 | 132 1352 8 Spaces Moved 1111 | 65 1046 . Core 67 | 65 2 . Treads . | . . . Legs 486 | . 486 . Wheels 148 | . 148 . Hover 410 | . 410 . Flight . | . . . Fastest Speed 50 | 50 56 . Average Speed 101 | 172 97 . Slowest Speed 200 | 200 150 . Overloaded Moves . | . . . Propulsion Burnouts . | . . . Robots Hopped . | . . . Potential Cave-ins . | . . . Cave-ins Triggered . | . . . Exploration Rate (%) 34 | 4 94 6 Regions Visited 2 Branch Regions 1 Pre-discovered Areas . | . . . Known Exits Taken 1 | . 1 . Unknown Exits Taken 1 | 1 . . Scrap Searched . | . . . Spaces Dug . | . . . Terrain Destroyed . | . . . Melee . | . . . Projectile . | . . . AOE . | . . . Terrain Rammed . | . . . Walls Destroyed . | . . . Machines Disabled . | . . . Actions | -11 -10 -10 --------- Run | Yrd Mat Min Total 1388 | 84 1301 3 Wait 127 | 10 117 . Move 1109 | 64 1045 . Hop . | . . . Pick Up 23 | 7 16 . Fast Attach 3 | 3 . . Attach 18 | . 18 . Detach 2 | . 2 . Swap 1 | . 1 . Drop 9 | . 9 . Fire 93 | . 90 3 Melee . | . . . Ram 1 | . 1 . Kick 2 | . 2 . Crush . | . . . Escape Stasis . | . . . Rewire . | . . . Trap . | . . . Miscellaneous . | . . . Route ------- -11/Scrapyard -10/Materials (discovered 4 exits: *Mat x3 / *Min) -10/Mines History --------- Turn | Location | Event 4 | -11/Scrapyard | Discovered new exit (range 16) 133 | -11/Scrapyard | Entered Materials 183 | -10/Materials | Discovered new exit (range 7) 325 | -10/Materials | Discovered new exit (range 14) 329 | -10/Materials | Build established: Mutant 724 | -10/Materials | Lost 3 parts (1p1n1w) 726 | -10/Materials | Core integrity fell below 50% 852 | -10/Materials | Core integrity fell below 20% 930 | -10/Materials | Discovered new exit (range 15) 1236 | -10/Materials | Discovered new exit (range 16) 1387 | -10/Materials | Identified exit to Mines 1431 | -10/Materials | Identified exit to Materials 1444 | -10/Materials | Build established: Scavenger-Mutant 1485 | -10/Materials | Entered Mines 1493 | -10/Mines | Destroyed by S-10 Pest with Light Assault Rifle Last Messages --------------- T-07 Excavator is excavating. U-05 Engineer lays Concrete. T-07 Excavator is excavating. Connecting with Terminal... >>Access(Branch) Found 1 branch access point: (12,10) Mines Map updated. Feedback: System corruption (+1%). 4DJO4YG8T> H|MUNAMQEHV Connecting with Terminal... >>Access(Main) Found 3 level access points to Materials: (70,63) (15,64) (43,67) Map updated. System corrupted: Matter fused (-8). LOCATION=MINES GOAL=ESCAPE Map ----- +----------------------------------------------------+ | ???????????????????????????????????????? | | ???????????????????????????????????????? | | ???????????????????????????????????????? | | ???????????????????????????????????????? | | ???????????????????????????????????????? | | ???????????????????????????????????????? | | ???????????????????????????????????????? | | ???????????????????????????????????????? | | ???????????????????????????????????????? | | ???????????????????????????????????????? | | ????????????????????????? ?????????????? | | ????????????????????????? ?????????????? | | ????????????????????????? ?????????????? | | ????????????????????????? ?????????????? | | ????????????????????????? ?????????????? | | ????????????????????????? ?????????????? | | ????????????????????????? ?????????????? | | ????????????????????????# #????????????? | | ????????????????????????# #????????????? | | ????????????????????????# #????????????? | | ?????????????????????#### #########????? | | ?????????????????????# ?????? | | ?????????????????????# s """ ?????? | | ?????????????????????#s """ ?????? | | ?????????????????????# s """ #????? | | ?????????????????????# @ #????? | | ?????????????????????# """ #????? | | ?????????????????????# """ ?????? | | ?????????????????????# """ ?????? | | ?????????????????????# ?????? | | ?????????????????????##############????? | | ???????????????????????????????????????? | | ???????????????????????????????????????? | | ???????????????????????????????????????? | | ???????????????????????????????????????? | | ???????????????????????????????????????? | | ???????????????????????????????????????? | | ???????????????????????????????????????? | | ???????????????????????????????????????? | | ???????????????????????????????????????? | | ???????????????????????????????????????? | | ???????????????????????????????????????? | | ???????????????????????????????????????? | | | | | | | | | | | | | | | +----------------------------------------------------+ Best States ------------- Heat Dissipation 25 Energy Generation 14 Energy Capacity 250 Matter Stores 300 Matter Capacity 300 Sight Range 16 Terrain Scan Density 10 Armor Coverage 150 Evasion (%) 55 Item Schematics ----------------- None Robot Schematics ------------------ None Fabricated ------------ Nothing Repaired ---------- Nothing Studied --------- None Alien Tech Used ----------------- None Achievements -------------- None Challenges ------------ None Game ------ Seed BombZeronetNanosword Manual? 0 Play Time 00:19:05 Cumulative 44.2 hours Start 2026.07.25 @ 21:46:01 End 2026.07.25 @ 22:16:43 Sessions 1 Manual Loads 0 Difficulty Rogue Special Mode None Game No. 75 Rogue 73 Adventurer 0 Explorer 2 Win Type - Total 0 Types 0/0/0/0/0/0/0/0/0/0 Lore% 24 Gallery% 28 Achievement% 19 Wizard Run 0 Options --------- Layout 1 ASCII 0 Keyboard 0 Movement Mouse Keybinds 0 Fullscreen 1 Font 24/Smallcaps Map View 50x35 Zoom Use 0% Tactical HUD 0 Map Filters NONE Filters NONE Steam 1 RUN: 70e67dfc-6d76-492c-a1de-da58e235464a